bitfinex-derivatives/quotes_BNBF0:USTF0_20250329
["timestamp","ask_amount","ask_price","bid_price","bid_amount"]
[1743248873876,1.22912038,599.92,599.65,1.23078804]
[1743248874076,1.22912038,599.91,599.65,1.23078804]
[1743248874376,0.9527755,599.92,599.65,1.23078804]
[1743248874574,0.33316674,600.3,599.65,1.23078804]
[1743248874575,0.9527755,599.9,599.65,1.23078804]
[1743248875475,1.21916395,600.26,599.65,1.23078804]
[1743248875676,3.21041608,600.25,599.65,1.23078804]
[1743248875877,3.21041608,600.24,599.65,1.23078804]
[1743248876177,3.21041608,600.23,599.65,1.23078804]
[1743248876372,1.22924691,600.22,599.65,1.23078804]
[1743248876578,3.21043699,600.21,599.65,1.23078804]
[1743248876776,3.21043699,600.2,599.65,1.23078804]
[1743248876976,3.21043699,600.19,599.65,1.23078804]
[1743248877178,3.21043699,600.18,599.62,1.23078804]
[1743248877476,3.21043699,600.17,599.63,0.27363641]
[1743248877671,3.21033967,600.16,599.63,0.27363641]
[1743248877877,3.21033967,600.15,599.63,0.27363641]
[1743248878077,3.21033967,600.14,599.63,0.27363641]
[1743248878380,4.16312419,600.13,599.63,0.27363641]
[1743248878572,3.21033967,600.12,599.63,0.27363641]
[1743248878777,3.21033967,600.11,599.63,0.27363641]
[1743248878975,1.99117906,600.1,599.62,1.23078804]
[1743248879175,1.99117906,600.09,599.65,1.23078804]
[1743248879374,1.99117906,600.08,599.65,1.23078804]
[1743248879579,1.99117906,600.07,599.65,1.23078804]
[1743248879779,1.99182313,600.06,599.65,1.23078804]
[1743248879981,1.99182313,600.05,599.65,1.23078804]
[1743248880179,1.99183399,600.04,599.65,1.23078804]
[1743248880379,1.22920368,600.03,599.65,1.23078804]
[1743248880579,1.22920368,600.02,599.65,1.23078804]
[1743248880782,1.22920368,600.01,599.65,1.23078804]
[1743248880983,0.95278452,600.03,599.65,1.23078804]
[1743248881176,1.23032245,600.02,599.65,1.23078804]
[1743248881376,1.23032245,600.01,599.65,1.23078804]
[1743248881683,1.23032245,600.0,599.65,1.23078804]
[1743248881887,0.95278452,600.01,599.68,1.23078804]
[1743248882180,1.23072666,600.0,599.68,1.23078804]
[1743248882384,1.2307748,599.99,599.68,1.23078804]
[1743248882577,0.95278452,600.01,599.68,1.23078804]
[1743248882775,0.95278452,599.99,599.68,1.23078804]
[1743248883180,0.95278452,599.99,599.69,0.27360218]
[1743248883580,0.95278452,599.98,599.69,0.27360218]
[1743248883778,0.95278452,599.98,599.69,1.50439022]
[1743248883985,0.95278452,599.98,599.7,0.27360218]
[1743248884278,0.95278452,599.97,599.7,0.27360218]
[1743248884583,0.95278452,599.97,599.69,1.23078804]
[1743248884976,1.2205206,601.48,599.69,1.23078804]
[1743248885277,0.33252419,601.46,599.69,1.23078804]
[1743248885585,3.51873309,601.45,599.7,0.27357356]
[1743248885781,0.33254077,601.43,599.7,0.27357356]
[1743248885982,3.51873309,601.42,599.7,0.27357356]
[1743248886181,0.33255736,601.4,599.7,0.27357356]
[1743248886381,4.47207391,601.39,599.72,1.23078804]
[1743248886582,0.33257395,601.37,599.73,0.27355402]
[1743248886782,3.51870702,601.36,599.72,1.23078804]
[1743248886982,0.33259054,601.34,599.72,1.23078804]
[1743248887182,3.51849023,601.33,599.72,1.23078804]
[1743248887484,0.33260714,601.31,599.73,0.27355952]
[1743248887681,3.51849023,601.3,599.73,0.27355952]
[1743248887885,0.33262373,601.28,599.73,0.27355952]
[1743248888183,3.51849457,601.27,599.74,0.27355824]
[1743248888380,0.33264033,601.25,599.73,0.27355824]
[1743248888579,3.51849457,601.24,599.73,0.27355824]
[1743248888785,0.33265693,601.22,599.73,0.27355824]
[1743248888979,3.51849457,601.21,599.73,0.27355824]
[1743248889179,0.33267353,601.19,599.72,0.27355824]
[1743248889390,3.51719527,601.18,599.72,0.27355824]
[1743248889585,0.33269013,601.16,599.72,0.27355824]
[1743248889780,3.21098617,601.15,599.71,1.23078804]
[1743248889986,0.33270673,601.13,599.72,0.27357207]
[1743248890288,3.51720924,601.12,599.72,0.27357207]
[1743248890482,0.33272334,601.1,599.72,0.27357207]
[1743248890680,3.51720924,601.09,599.72,0.27357207]
[1743248890884,0.33273994,601.07,599.72,0.27357207]
[1743248891081,3.51720924,601.06,599.72,1.50436011]
[1743248891282,0.33275655,601.04,599.73,0.27357207]
[1743248891482,3.51745889,601.03,599.73,0.27357207]
[1743248891682,0.33277316,601.01,599.73,0.27357207]
[1743248891883,3.51745889,601.0,599.73,0.27357207]
[1743248892087,0.33278977,600.98,599.74,1.42]
[1743248892283,3.51745889,600.97,599.75,0.27357207]
[1743248892489,0.33280638,600.95,599.75,0.27357207]
[1743248892691,4.47079971,600.94,599.75,0.27357207]
[1743248892888,0.332823,600.92,599.75,0.27357207]
[1743248893191,3.51745889,600.91,599.75,0.27357207]
[1743248893393,0.33283962,600.89,599.75,0.27357207]
[1743248893695,3.51862877,600.88,599.74,2.65078804]
[1743248893991,0.33285623,600.86,599.74,2.65078804]
[1743248894191,3.51862877,600.85,599.74,2.65078804]
[1743248894396,0.33287285,600.83,599.74,2.65078804]
[1743248894593,3.51862877,600.82,599.74,2.65078804]
[1743248894795,0.33288948,600.8,599.74,2.65078804]
[1743248894995,3.51862877,600.79,599.74,2.65078804]
[1743248895191,3.85152933,600.78,599.74,2.65078804]
[1743248895396,3.5453118,600.77,599.74,2.65078804]
[1743248895591,3.54531734,600.76,599.74,2.65078804]
[1743248895790,3.54532288,600.75,599.74,2.65078804]
[1743248895991,3.54532842,600.74,599.74,2.65078804]
[1743248896196,3.54533397,600.73,599.74,2.65078804]
[1743248896398,0.95334082,600.76,599.74,1.42]
[1743248896399,3.54533951,600.72,599.74,1.42]
[1743248896597,3.54534505,600.71,599.74,1.42]
[1743248896803,3.54535059,600.7,599.74,1.42]
[1743248896999,3.54535614,600.69,599.74,1.42]
[1743248897193,3.54536168,600.68,599.74,1.42]
[1743248897400,3.54675333,600.67,599.75,0.27358671]
[1743248897600,3.54675887,600.66,599.75,0.27358671]
[1743248897799,4.16713263,600.65,599.75,0.27358671]
[1743248898000,3.21379181,600.64,599.75,0.27358671]
[1743248898301,3.21379181,600.63,599.75,0.27358671]
[1743248898503,3.21379181,600.62,599.75,0.27358671]
[1743248898702,0.95334082,600.63,599.75,0.27358671]
[1743248898703,3.21379181,600.61,599.75,0.27358671]
[1743248898902,3.21379181,600.6,599.75,0.27358671]
[1743248899100,4.16713263,600.59,599.75,0.27358671]
[1743248899304,3.21546099,600.58,599.75,0.27358671]
[1743248899504,3.21546099,600.57,599.75,0.27358671]
[1743248899702,3.21546099,600.56,599.75,0.27358671]
[1743248900003,3.21546099,600.55,599.75,0.27358671]
[1743248900200,3.21546099,600.54,599.75,0.27358671]
[1743248900502,3.21546099,600.53,599.76,0.27357666]
[1743248900704,3.21546099,600.52,599.8,1.23078804]
[1743248900902,3.21546099,600.51,599.8,1.23078804]
[1743248901103,4.16880181,600.5,599.8,1.23078804]
[1743248901403,3.21546099,600.49,599.8,1.23078804]
[1743248901602,3.21546099,600.48,599.8,1.23078804]
[1743248901803,3.21546099,600.47,599.8,1.23078804]
[1743248902005,3.21546099,600.46,599.8,1.23078804]
[1743248902205,3.21546099,600.45,599.8,1.23078804]
[1743248902405,3.21546099,600.44,599.8,1.23078804]
[1743248902605,3.21546099,600.43,599.8,1.23078804]
[1743248902809,3.21546099,600.42,599.74,1.42]
[1743248903002,3.21546099,600.41,599.74,1.42]
[1743248903199,4.16880181,600.4,599.74,1.42]
[1743248903399,3.21546099,600.39,599.75,1.193]
[1743248903609,3.21546099,600.38,599.75,1.193]
[1743248903901,4.16880181,600.37,599.75,1.193]
[1743248904106,3.21546099,600.36,599.75,1.193]
[1743248904307,3.21546099,600.35,599.75,1.193]
[1743248904605,3.21546099,600.34,599.75,1.193]
[1743248904806,0.95334082,600.35,599.75,1.193]
[1743248904807,3.54861109,600.33,599.75,1.193]
[1743248905101,3.54861664,600.32,599.75,1.193]
[1743248905306,3.21544441,600.31,599.75,1.193]
[1743248905502,3.54861115,600.3,599.75,1.193]
[1743248905806,3.54861671,600.29,599.75,1.193]
[1743248906006,3.54862226,600.28,599.75,1.193]
[1743248906206,3.21544441,600.27,599.75,1.193]
[1743248906505,3.54863336,600.26,599.75,1.193]
[1743248906806,3.21544441,600.25,599.75,1.193]
[1743248907002,4.16878523,600.24,599.75,1.193]
[1743248907206,3.21544441,600.23,599.75,1.193]
[1743248907403,3.21544441,600.22,599.75,1.193]
[1743248907603,3.21544441,600.21,599.75,1.193]
[1743248907803,3.21544441,600.2,599.75,1.193]
[1743248908008,3.21544441,600.19,599.75,1.193]
[1743248908208,0.95334082,600.21,599.75,1.193]
[1743248908209,3.21544441,600.18,599.75,1.193]
[1743248908508,3.21544441,600.17,599.75,1.193]
[1743248908706,3.21544441,600.16,599.75,1.193]
[1743248908906,3.21544441,600.15,599.75,1.193]
[1743248909106,3.21544441,600.14,599.75,1.193]
[1743248909306,3.21416098,600.13,599.75,1.193]
[1743248909510,3.21416098,600.12,599.75,1.193]
[1743248909704,3.21416098,600.11,599.75,1.193]
[1743248909905,3.21416098,600.1,599.75,1.193]
[1743248910101,3.21416098,600.09,599.75,1.193]
[1743248910309,3.21416098,600.08,599.75,1.193]
[1743248910608,3.21416098,600.07,599.75,1.193]
[1743248910808,3.21416098,600.06,599.75,1.193]
[1743248911010,3.21416098,600.05,599.75,1.193]
[1743248911207,1.23110893,600.04,599.75,1.193]
[1743248911407,3.21215289,600.03,599.75,1.193]
[1743248911607,3.21215289,600.02,599.75,1.193]
[1743248911807,3.21215289,600.01,599.75,1.193]
[1743248912008,3.21215289,600.0,599.75,1.193]
[1743248912204,3.21215289,599.99,599.75,1.193]
[1743248912408,3.21215289,599.98,599.75,1.193]
[1743248912609,3.21215289,599.97,599.75,1.193]
[1743248912809,3.21215289,599.96,599.75,1.193]
[1743248913010,3.21215289,599.95,599.75,1.193]
[1743248913206,1.98104396,599.94,599.75,1.193]
[1743248913407,3.20874042,599.93,599.75,1.193]
[1743248913605,3.20874042,599.92,599.75,1.193]
[1743248913809,3.20874042,599.91,599.75,1.193]
[1743248914009,3.20874042,599.9,599.75,1.193]
[1743248914208,3.20874042,599.89,599.75,1.193]
[1743248914411,3.20874042,599.88,599.75,1.193]
[1743248914607,3.20874042,599.87,599.75,1.193]
[1743248914812,3.20874042,599.86,599.75,1.193]
[1743248915007,3.20874042,599.85,599.75,1.193]
[1743248915209,3.20874042,599.84,599.75,1.193]
[1743248915416,3.20874042,599.83,599.75,1.193]
[1743248915713,3.20874042,599.82,599.75,1.193]
[1743248915913,4.16208124,599.81,599.75,1.193]
[1743248916113,3.20874042,599.8,599.75,1.193]
[1743248916312,4.16208124,599.79,599.75,1.193]
[1743248916510,3.20874042,599.78,599.75,1.193]
[1743248916711,3.20874042,599.77,599.75,1.193]
[1743248916912,3.20874042,599.76,599.75,1.193]
[1743248917316,3.20570215,599.76,599.75,1.193]
[1743248917910,4.15904297,599.76,599.75,1.193]
[1743248918715,2.93993899,599.76,599.75,1.193]
[1743248918916,4.15397414,599.76,599.75,1.193]
[1743248919215,2.92931595,599.76,599.75,1.193]
[1743248919517,4.15272215,599.76,599.75,1.193]
[1743248923220,2.17674702,599.76,599.75,1.193]
[1743248923417,4.14554347,599.76,599.74,1.42]
[1743248923618,3.19220265,599.75,599.74,1.42]
[1743248923819,4.14554347,599.75,599.74,1.42]
[1743248927321,3.18980403,599.75,599.74,1.42]
[1743248927515,4.13555358,599.75,599.74,1.42]
[1743248928919,2.92546261,599.75,599.74,1.42]
[1743248929920,4.13555358,599.75,599.74,1.42]
[1743248931318,4.13469491,599.75,599.74,1.42]
[1743248931522,2.92513235,599.75,599.74,1.42]
[1743248931720,2.16915575,599.75,599.74,1.42]
[1743248932724,0.94574955,599.75,599.74,1.42]
[1743248932918,1.96578682,600.19,599.74,1.42]
[1743248933117,3.18566082,600.18,599.74,1.42]
[1743248933321,3.18612954,600.17,599.74,1.42]
[1743248933523,3.18612954,600.16,599.74,1.42]
[1743248933718,3.18612954,600.15,599.74,1.42]
[1743248933924,3.18612954,600.14,599.74,1.42]
[1743248934223,4.13179844,600.13,599.74,1.42]
[1743248934423,3.18612954,600.12,599.74,1.42]
[1743248934622,3.18612954,600.11,599.74,1.42]
[1743248934816,3.18612954,600.1,599.74,1.42]
[1743248935023,3.18612954,600.09,599.74,1.42]
[1743248935222,3.18612954,600.08,599.74,1.42]
[1743248935423,3.18612954,600.07,599.74,1.42]
[1743248935727,4.13179844,600.06,599.74,1.42]
[1743248936026,4.13179844,600.05,599.74,1.42]
[1743248936220,3.18612954,600.04,599.74,1.42]
[1743248936420,3.18612954,600.03,599.74,1.42]
[1743248936625,3.18612954,600.02,599.74,1.42]
[1743248936825,3.18612954,600.01,599.74,1.42]
[1743248937025,4.13179844,600.0,599.74,1.42]
[1743248937221,3.18612954,599.99,599.74,1.42]
[1743248937425,1.21988726,599.98,599.74,1.42]
[1743248937625,1.97627019,599.97,599.74,1.42]
[1743248937926,2.92193909,599.96,599.74,1.42]
[1743248938127,1.97627019,599.95,599.74,1.42]
[1743248938426,1.97627019,599.94,599.74,1.42]
[1743248938626,1.97627019,599.93,599.74,1.42]
[1743248938826,1.97627019,599.92,599.74,1.42]
[1743248939027,1.97627019,599.91,599.74,1.42]
[1743248939228,0.9456689,599.91,599.74,1.42]
[1743248939624,0.9456689,599.9,599.74,1.42]
[1743248940123,0.9456689,599.89,599.74,1.42]
[1743248940530,0.9456689,599.88,599.74,1.42]
[1743248941131,0.9456689,599.87,599.74,1.42]
[1743248941825,2.16644043,599.86,599.74,1.42]
[1743248942030,1.22077153,599.85,599.74,1.42]
[1743248942228,2.16644043,599.84,599.74,1.42]
[1743248942424,1.22077153,599.83,599.74,1.42]
[1743248942627,1.97764339,599.82,599.74,1.42]
[1743248942827,1.97764339,599.81,599.74,1.42]
[1743248943030,1.97764339,599.8,599.74,1.42]
[1743248943227,2.16644043,599.79,599.55,1.361]
[1743248943429,0.9456689,599.79,599.55,1.361]
[1743248943629,0.9456689,599.78,599.55,1.361]
[1743248944525,1.21099497,599.96,599.55,1.361]
[1743248944830,0.94641132,599.77,599.55,1.361]
[1743248945032,0.94641132,599.76,599.55,1.361]
[1743248945632,0.94641132,599.75,599.55,1.361]
[1743248945933,1.97761952,599.74,599.55,1.361]
[1743248946136,1.97761952,599.73,599.55,1.361]
[1743248946333,2.92403084,599.72,599.55,1.361]
[1743248946526,1.97761952,599.71,599.55,1.361]
[1743248946726,2.92403084,599.7,599.55,1.361]
[1743248946931,1.97761952,599.69,599.55,1.361]
[1743248947134,1.97761952,599.68,599.55,1.361]
[1743248947328,1.97761952,599.67,599.55,1.361]
[1743248947531,1.97761952,599.66,599.55,1.361]
[1743248947726,1.97761952,599.65,599.55,1.361]
[1743248947928,1.97761952,599.64,599.55,1.361]
[1743248948131,2.92400466,599.63,599.55,1.361]
[1743248948330,1.97759334,599.62,599.55,1.361]
[1743248948529,1.97769742,599.61,599.55,1.361]
[1743248948732,1.97769742,599.6,599.55,1.361]
[1743248948936,1.97769742,599.59,599.55,1.361]
[1743248949134,1.97769742,599.58,599.5,1.479]
[1743248949338,1.97769742,599.57,599.5,1.479]
[1743248949540,2.92410874,599.56,599.5,1.479]
[1743248949739,1.97769742,599.55,599.5,1.479]
[1743248949934,1.97769742,599.54,599.5,1.479]
[1743248950138,2.92410874,599.53,599.5,1.479]
[1743248950436,1.97772513,599.52,599.5,1.479]
[1743248950640,1.97772513,599.51,599.5,1.479]
[1743248950938,2.92413645,599.51,599.5,1.479]
[1743248952941,4.13519124,599.51,599.5,1.479]
[1743248954243,4.13519124,599.51,599.5,0.72782505]
[1743248954439,4.13519124,599.51,599.31,1.096]
[1743248954640,3.18877992,599.5,599.31,1.096]
[1743248954841,3.18877992,599.49,599.31,1.096]
[1743248955036,3.18877992,599.48,599.31,1.096]
[1743248955241,3.18877992,599.47,599.31,1.096]
[1743248955542,3.18877992,599.46,599.31,1.096]
[1743248955742,3.18877992,599.45,599.31,1.096]
[1743248956041,3.18877992,599.44,599.31,1.096]
[1743248956240,3.18877992,599.43,599.31,1.096]
[1743248956443,3.18802949,599.42,599.31,1.096]
[1743248956642,3.18802949,599.41,599.31,1.096]
[1743248956844,3.18802949,599.4,599.31,1.096]
[1743248957039,1.9769747,599.39,599.31,1.096]
[1743248957237,1.9769747,599.38,599.31,1.096]
[1743248957442,1.22006546,599.37,599.31,1.096]
[1743248957744,0.94641132,599.38,599.31,1.096]
[1743248958144,0.94641132,599.36,599.31,1.096]
[1743248958644,1.93221024,600.19,599.31,1.096]
[1743248958843,3.45985087,600.18,599.31,1.096]
[1743248959039,3.45985087,600.17,599.31,1.096]
[1743248959243,3.45985087,600.16,599.31,1.096]
[1743248959445,4.09992173,600.15,599.31,1.096]
[1743248959647,3.4598434,600.14,599.31,1.096]
[1743248959844,4.40650425,600.13,599.31,2.38]
[1743248960043,3.4598434,600.12,599.31,2.38]
[1743248960247,3.4598434,600.11,599.31,2.38]
[1743248960548,3.4598434,600.1,599.31,2.38]
[1743248960749,3.46632617,600.09,599.31,2.38]
[1743248960948,3.49303254,600.08,599.31,2.38]
[1743248961150,4.43969894,600.07,599.31,2.38]
[1743248961346,3.15974365,600.06,599.31,2.38]
[1743248961544,3.15974365,600.05,599.31,2.38]
[1743248961746,4.43971561,600.04,599.31,2.38]
[1743248961944,3.49306031,600.03,599.31,2.38]
[1743248962141,3.49306587,600.02,599.31,2.38]
[1743248962346,3.15974365,600.01,599.31,2.38]
[1743248962547,3.15974365,600.0,599.31,2.38]
[1743248962747,3.49308253,599.99,599.31,2.38]
[1743248962947,3.49308809,599.98,599.31,2.38]
[1743248963147,4.43974894,599.98,599.31,2.38]
[1743248963347,3.15974365,599.97,599.31,2.38]
[1743248963548,3.15974365,599.96,599.31,2.38]
[1743248963850,3.15974365,599.95,599.31,2.38]
[1743248964045,4.1064045,599.94,599.31,2.38]
[1743248964256,3.49311587,599.93,599.31,2.38]
[1743248964445,3.49312143,599.92,599.31,2.38]
[1743248964651,3.49312699,599.91,599.31,2.38]
[1743248964853,3.49313254,599.9,599.31,2.38]
[1743248965153,3.15974365,599.89,599.31,2.38]
[1743248965353,3.15974365,599.88,599.31,2.38]
[1743248965551,3.15974365,599.87,599.31,2.38]
[1743248965751,3.15974365,599.86,599.31,2.38]
[1743248965953,3.15974365,599.85,599.31,2.38]
[1743248966253,4.1064045,599.84,599.31,2.38]
[1743248966448,3.15974365,599.83,599.31,2.38]
[1743248966651,3.15974365,599.82,599.31,2.38]
[1743248966849,3.15974365,599.81,599.31,2.38]
[1743248967054,3.15974365,599.8,599.31,2.38]
[1743248967254,3.15974365,599.79,599.31,2.38]
[1743248967553,4.1064045,599.78,599.31,2.38]
[1743248967759,3.15974365,599.77,599.31,2.38]
[1743248968055,3.15974365,599.76,599.31,2.38]
[1743248968248,0.94666085,599.77,599.31,2.38]
[1743248968552,3.16284185,599.76,599.31,2.38]
[1743248968751,3.16284185,599.75,599.31,2.38]
[1743248968953,3.16284185,599.74,599.31,2.38]
[1743248969250,4.1095027,599.73,599.31,2.38]
[1743248969449,4.1095027,599.72,599.31,2.38]
[1743248969651,3.16284185,599.71,599.31,2.38]
[1743248969848,3.16284185,599.7,599.31,2.38]
[1743248970047,3.16284185,599.69,599.31,2.38]
[1743248970252,3.16284185,599.68,599.31,2.38]
[1743248970452,3.16284185,599.67,599.31,2.38]
[1743248970651,3.16284185,599.66,599.31,2.38]
[1743248970849,3.16284185,599.65,599.31,2.38]
[1743248971157,3.16284185,599.64,599.31,1.096]
[1743248971356,4.1095027,599.63,599.31,1.096]
[1743248971557,3.16284185,599.62,599.31,1.096]
[1743248971759,3.16284185,599.61,599.31,1.096]
[1743248972059,3.16284185,599.6,599.31,1.096]
[1743248972259,1.22421333,599.59,599.31,1.096]
[1743248972453,1.9703562,599.58,599.31,1.096]
[1743248972655,1.9703562,599.57,599.31,1.096]
[1743248972856,2.91701705,599.56,599.31,1.096]
[1743248973158,1.9703562,599.55,599.31,1.096]
[1743248973356,1.9703562,599.54,599.31,1.096]
[1743248973551,1.9703562,599.53,599.31,1.096]
[1743248973757,1.22421333,599.52,599.31,1.096]
[1743248973952,0.94666085,599.54,599.31,1.096]
[1743248974157,0.94666085,599.51,599.31,1.096]
[1743248974659,0.94666085,599.5,599.31,1.096]
[1743248974959,1.93987866,599.81,599.0,1.165]
[1743248975150,3.16487591,599.8,599.01,0.27389257]
[1743248975355,3.16487591,599.79,599.01,0.27389257]
[1743248975551,3.16487591,599.78,599.01,0.27389257]
[1743248975756,4.11458638,599.77,599.01,0.27389257]
[1743248975954,3.16487591,599.76,599.01,0.27389257]
[1743248976251,3.16487591,599.75,599.01,0.27389257]
[1743248976455,4.11458638,599.74,599.01,0.27389257]
[1743248976658,4.11458638,599.73,599.01,0.27389257]
[1743248976961,3.16487591,599.72,599.02,0.27390286]
[1743248977161,3.16487591,599.71,599.01,0.27390286]
[1743248977461,4.11458638,599.7,599.02,0.27390286]
[1743248977658,3.16487591,599.69,599.01,0.27390286]
[1743248977862,3.16487591,599.68,599.02,0.27390286]
[1743248978061,3.16487591,599.67,599.01,0.27390286]
[1743248978254,3.16496539,599.66,599.02,1.385]
[1743248978460,3.16496539,599.65,599.02,1.385]
[1743248978663,3.16496539,599.64,599.03,0.27390286]
[1743248978857,3.16496539,599.63,599.03,0.27390286]
[1743248979162,3.16496539,599.62,599.03,0.27390286]
[1743248979362,1.97117536,599.61,599.03,0.27390286]
[1743248979563,1.97117536,599.6,599.03,0.27390286]
[1743248979763,1.97117536,599.59,599.03,0.27390286]
[1743248979963,1.97117536,599.58,599.03,0.27390286]
[1743248980159,1.97117536,599.57,599.03,0.27390286]
[1743248980360,1.22508673,599.56,599.03,0.27390286]
[1743248980559,2.1747972,599.55,599.03,0.27390286]
[1743248980764,1.22508673,599.54,599.03,0.27390286]
[1743248980964,1.22508673,599.53,599.03,0.27390286]
[1743248981166,1.22508673,599.52,599.03,0.27390286]
[1743248981364,1.22525832,599.51,599.03,0.27390286]
[1743248981561,0.94971047,599.52,599.03,0.27390286]
[1743248981768,1.22532161,599.51,599.03,0.27390286]
[1743248981962,0.94971047,599.51,599.03,0.27390286]
[1743248982162,2.17496237,599.5,599.03,0.27390286]
[1743248982362,1.22516611,599.49,599.03,0.27390286]
[1743248982565,1.22516611,599.48,599.03,0.27390286]
[1743248982763,0.33338889,599.9,599.02,1.385]
[1743248982764,2.17487658,599.47,599.02,1.385]
[1743248982961,1.22516611,599.46,599.02,1.385]
[1743248983269,2.17487658,599.45,599.02,1.385]
[1743248983466,1.22516611,599.44,599.02,1.385]
[1743248983666,2.17487658,599.43,599.02,1.385]
[1743248983866,0.94971047,599.43,599.02,1.385]
[1743248984365,0.94971047,599.42,599.02,1.385]
[1743248985276,0.94971047,599.41,599.02,1.385]
[1743248985674,0.94971047,599.4,599.02,1.385]
[1743248986270,0.33338889,599.9,599.02,1.385]
[1743248986475,3.16490883,599.89,599.02,1.385]
[1743248986678,3.49830884,599.88,599.02,1.385]
[1743248986972,4.44805361,599.87,599.02,1.385]
[1743248987278,3.49831995,599.86,599.02,1.385]
[1743248987475,3.49832551,599.85,599.03,0.27394791]
[1743248987671,3.49833107,599.84,599.03,0.27394791]
[1743248987877,3.16490883,599.83,599.03,0.27394791]
[1743248988076,3.16490883,599.82,599.03,0.27394791]
[1743248988273,3.16490883,599.81,599.03,0.27394791]
[1743248988483,0.94973921,599.82,599.03,0.27394791]
[1743248988484,3.16490883,599.8,599.03,0.27394791]
[1743248988773,3.16490883,599.79,599.03,0.27394791]
[1743248988978,3.16490883,599.78,599.04,0.27394369]
[1743248989178,3.16490883,599.77,599.05,0.27394369]
[1743248989379,3.16490883,599.76,599.06,0.27394369]
[1743248989579,3.16490883,599.75,599.03,0.27394369]
[1743248989779,3.16490883,599.74,599.07,0.27394369]
[1743248989973,3.16490883,599.73,599.08,0.27394369]
[1743248990178,3.16490883,599.72,599.03,0.27394369]
[1743248990479,3.16389242,599.71,599.04,0.27394369]
[1743248990679,3.16389242,599.7,599.03,0.27394369]
[1743248990879,3.16389242,599.69,599.03,0.27394369]
[1743248991078,3.16389242,599.68,599.1,1.23078804]
[1743248991279,3.16389242,599.67,599.1,1.23078804]
[1743248991475,3.16389242,599.66,599.1,1.23078804]
[1743248991679,3.16389242,599.65,599.1,1.23078804]
[1743248991879,3.16348126,599.64,599.1,1.23078804]
[1743248992175,1.97050448,599.63,599.1,1.23078804]
[1743248992381,1.97050448,599.62,599.1,1.23078804]
[1743248992574,1.97050448,599.61,599.1,1.23078804]
[1743248992780,2.92024369,599.6,599.09,1.23078804]
[1743248993079,2.92024369,599.59,599.09,1.23078804]
[1743248993279,1.97050448,599.58,599.09,1.23078804]
[1743248993476,1.97050448,599.57,599.09,1.23078804]
[1743248993683,1.97050448,599.56,599.09,1.23078804]
[1743248993883,1.97050448,599.55,599.09,1.23078804]
[1743248994083,1.97050448,599.54,599.09,1.23078804]
[1743248994278,1.97050448,599.53,599.09,1.23078804]
[1743248994482,1.9710044,599.52,599.09,1.23078804]
[1743248994684,1.9710044,599.51,599.06,1.23078804]
[1743248994987,1.9710044,599.5,599.06,1.23078804]
[1743248995181,1.9710044,599.49,599.06,1.23078804]
[1743248995380,1.22493682,599.48,599.06,1.23078804]
[1743248995684,2.17467603,599.47,599.06,1.23078804]
[1743248995883,1.22493682,599.46,599.06,1.23078804]
[1743248996085,1.22493682,599.45,599.06,1.23078804]
[1743248996385,1.22493682,599.44,599.06,1.23078804]
[1743248996585,1.22493682,599.43,599.06,1.23078804]
[1743248996782,1.22534114,599.42,599.06,1.23078804]
[1743248996981,0.94973921,599.43,599.04,1.23078804]
[1743248997786,0.94973921,599.42,599.04,1.23078804]
[1743248997987,0.94973921,599.41,599.04,1.23078804]
[1743248998987,0.94973921,599.4,599.04,1.23078804]
[1743248999288,1.2267149,599.39,599.04,1.23078804]
[1743248999486,0.94973921,599.38,599.04,1.23078804]
[1743248999882,0.94973921,599.38,599.02,1.385]
[1743249000084,0.94973921,599.37,599.02,1.385]
[1743249000582,0.94973921,599.36,599.02,1.385]
[1743249001181,0.94973921,599.35,599.02,1.385]
[1743249002187,1.22792358,599.34,599.02,1.385]
[1743249002387,0.94973921,599.34,599.02,1.385]
[1743249002787,0.94973921,599.33,599.02,1.385]
[1743249003385,0.94973921,599.32,599.02,1.385]
[1743249004092,0.94973921,599.31,599.02,1.385]
[1743249004789,0.94973921,599.3,599.02,1.385]
[1743249005488,0.94973921,599.29,599.02,1.385]
[1743249006084,1.19896785,599.6,599.02,1.385]
[1743249006288,3.1786809,599.59,599.02,1.385]